bitfinex/quotes_ETHUSD_20220731
["timestamp","ask_amount","ask_price","bid_price","bid_amount"]
[1659255193543,0.35783988,1695.7,1695.0,11.387]
[1659255193762,0.35783988,1695.7,1695.1,0.00232147]
[1659255193970,1.46083988,1695.7,1695.1,0.00232147]
[1659255194130,2.89804672,1695.6,1695.1,0.00232147]
[1659255194533,2.89804672,1695.6,1695.0,0.30371004]
[1659255195034,3.34034672,1695.6,1695.0,0.30603165]
[1659255195441,2.89804672,1695.6,1695.0,0.30603165]
[1659255195868,2.89804672,1695.6,1695.0,0.30371004]
[1659255196480,2.89804672,1695.6,1695.0,0.30668654]
[1659255197152,2.89804672,1695.6,1695.0,0.30371004]
[1659255197774,0.4423,1695.5,1695.0,0.30668654]
[1659255198399,1.153,1695.7,1695.1,2.89804672]
[1659255198610,4.0633,1695.8,1695.1,3.54054672]
[1659255198611,2.7684,1695.8,1695.1,3.54054672]
[1659255198792,2.7684,1695.8,1695.2,2.89804672]
[1659255199264,2.7684,1695.8,1695.3,0.00528745]
[1659255199467,2.7684,1695.8,1695.3,2.90333417]
[1659255200490,5.66644672,1695.8,1695.3,0.00528745]
[1659255200669,0.35783988,1695.7,1695.3,0.00528745]
[1659255201827,0.35783988,1695.7,1695.3,0.00317672]
[1659255208166,0.35783988,1695.7,1695.0,6.85]
[1659255208363,0.35783988,1695.7,1695.0,9.73182053]
[1659255208684,3.2558866,1695.7,1695.0,0.33377381]
[1659255208898,0.2,1695.5,1695.0,0.33377381]
[1659255209273,0.00211072,1695.4,1695.0,0.33377381]
[1659255209473,1.107,1695.2,1695.0,0.3]
[1659255209690,2.89804672,1695.1,1695.0,0.3]
[1659255209893,0.30211072,1695.0,1694.6,0.05]
[1659255210116,0.30211072,1695.0,1694.3,0.05]
[1659255210117,1.107,1694.7,1694.3,0.05]
[1659255210419,1.107,1694.7,1694.0,0.05]
[1659255210420,10.87794672,1694.6,1694.0,0.05]
[1659255210566,10.87794672,1694.6,1693.8,0.14279]
[1659255210567,7.9799,1694.6,1693.8,0.14279]
[1659255210769,7.9799,1694.6,1693.9,0.03534628]
[1659255210770,0.00211072,1694.5,1693.9,0.03534628]
[1659255210966,0.00211072,1694.5,1693.9,0.47814628]
[1659255211426,0.00211072,1694.5,1694.0,2.89804672]
[1659255211974,2.90015744,1694.5,1693.9,0.03534628]
[1659255212178,3.50015744,1694.5,1693.9,0.03534628]
[1659255212404,1.107,1694.0,1693.9,0.03761931]
[1659255212606,0.35783989,1694.2,1693.9,0.00227303]
[1659255212770,3.34074672,1694.1,1693.9,0.00227303]
[1659255212972,0.4427,1694.1,1693.9,0.00227303]
[1659255213202,1.40053989,1694.2,1693.8,0.09279]
[1659255213375,2.89804672,1694.1,1693.8,0.09279]
[1659255213582,0.35783989,1694.0,1693.8,0.09279]
[1659255214004,3.25588661,1694.0,1693.8,0.09279]
[1659255214420,0.35783989,1694.0,1693.8,0.09279]
[1659255214589,2.89804672,1693.9,1693.8,0.09279]
[1659255214779,5.89804672,1693.9,1693.8,0.09279]
[1659255214975,14.12154672,1693.9,1693.8,0.09279]
[1659255215206,8.2235,1693.9,1693.8,0.09279]
[1659255215413,10.67874672,1693.9,1693.8,0.09279]
[1659255215773,11.12154672,1693.9,1693.8,0.09279]
[1659255216193,17.06274672,1693.9,1693.8,9e-05]
[1659255216427,0.00211072,1693.8,1693.4,0.05]
[1659255216601,0.00211072,1693.8,1693.3,0.007]
[1659255216602,2.89804672,1693.7,1693.5,0.00097905]
[1659255216787,2.89804672,1693.7,1693.1,0.05]
[1659255216788,1.707,1693.5,1693.1,0.05]
[1659255216987,1.707,1693.5,1693.0,0.2]
[1659255216988,1.307,1693.2,1693.0,0.2]
[1659255217231,1.307,1693.2,1693.0,0.0001]
[1659255217232,3.84104672,1693.1,1693.0,0.0001]
[1659255217437,3.84104672,1693.1,1692.6,0.05]
[1659255217438,0.2,1692.7,1692.6,0.05]
[1659255217645,2.89804672,1692.7,1692.2,0.15743808]
[1659255217937,2.90015744,1692.7,1692.2,0.10743808]
[1659255218133,0.00211072,1692.7,1692.2,0.10743808]
[1659255219397,2.90015744,1692.7,1692.2,0.10743808]
[1659255220007,0.00211072,1692.7,1692.2,0.10743808]
[1659255220213,8.95721435,1692.8,1692.2,3.80743808]
[1659255220214,7.5055,1692.8,1692.2,3.80743808]
[1659255220411,9.2161,1693.1,1692.2,3.85743808]
[1659255220614,20.13757226,1693.1,1692.3,0.05]
[1659255220802,6.53656039,1693.0,1692.3,0.05]
[1659255221007,2.89804672,1692.9,1692.3,0.05]
[1659255221324,3.63851367,1693.0,1692.5,0.00926584]
[1659255221325,0.64471435,1693.0,1692.5,0.00926584]
[1659255221505,2.89804672,1692.9,1692.5,0.00926584]
[1659255222202,0.35783989,1692.8,1692.5,0.007]
[1659255222645,3.25588661,1692.8,1692.5,0.007]
[1659255222807,0.35783989,1692.8,1692.5,0.007]
[1659255223012,3.25588661,1692.8,1692.5,0.007]
[1659255223939,3.99898661,1692.8,1692.5,0.007]
[1659255224607,2.89804672,1692.7,1692.5,0.007]
[1659255225211,3.55588661,1692.8,1692.5,0.007]
[1659255225721,0.2,1692.4,1692.0,0.3]
[1659255225922,1.103,1692.2,1691.4,3.7]
[1659255226130,3.34124672,1692.3,1691.4,3.9434]
[1659255226131,2.94804672,1692.3,1691.4,3.9434]
[1659255226330,4.05104672,1692.3,1691.4,3.9434]
[1659255226508,4.05104672,1692.3,1691.3,0.0234034]
[1659255226844,0.05,1692.2,1691.3,3.5234034]
[1659255227145,0.05,1692.2,1691.3,0.0234034]
[1659255227146,2.94804672,1692.2,1691.3,0.0234034]
[1659255227382,0.2,1691.9,1691.3,0.0234034]
[1659255227697,0.2,1691.9,1691.3,3.5234034]
[1659255227868,0.34554,1692.0,1691.3,3.5234034]
[1659255228190,0.2,1691.9,1691.3,0.0234034]
[1659255228346,2.89804672,1691.8,1691.3,0.0234034]
[1659255228565,2.89804672,1691.8,1691.3,0.02622211]
[1659255228566,4.30062672,1691.8,1691.3,0.02622211]
[1659255228765,5.89804672,1691.7,1691.3,0.02622211]
[1659255229003,2.89804672,1691.6,1691.3,0.02622211]
[1659255229504,0.29558,1691.8,1691.3,0.02622211]
[1659255229709,0.29558,1691.8,1691.3,0.0234034]
[1659255229863,1.0,1691.9,1691.3,0.0234034]
[1659255230065,1.05353116,1691.9,1691.3,2.92145012]
[1659255230380,1.39824551,1691.9,1691.3,2.87145012]
[1659255230565,2.89804672,1691.8,1691.1,0.05]
[1659255230766,0.05353116,1691.7,1691.2,0.00281879]
[1659255231206,3.29629223,1691.7,1691.2,0.00281879]
[1659255231554,3.29629223,1691.7,1691.0,0.704086]
[1659255231555,2.89804672,1691.6,1691.0,0.704086]
[1659255231699,0.05353116,1691.5,1691.0,0.654086]
[1659255232024,0.39824551,1691.5,1691.0,0.654086]
[1659255232207,3.29629223,1691.5,1691.0,0.654086]
[1659255232413,0.39824551,1691.5,1691.0,0.654086]
[1659255233210,2.89804672,1691.4,1691.0,0.654086]
[1659255233742,0.2,1691.1,1690.7,1.1880801]
[1659255233955,0.2957,1691.0,1690.7,1.1380801]
[1659255234123,0.2957,1691.0,1690.9,0.00281938]
[1659255234437,1.084749,1691.4,1690.9,0.59281938]
[1659255234636,2.89804672,1691.3,1690.9,0.59281938]
[1659255234882,2.89804672,1691.3,1690.9,0.59]
[1659255235086,0.29565,1691.4,1690.9,3.48804672]
[1659255235260,2.89804672,1691.3,1690.7,1.1880801]
[1659255235457,3.34144672,1691.3,1690.7,1.1380801]
[1659255235665,3.54154672,1691.2,1690.7,1.1380801]
[1659255235874,8.89538795,1691.2,1690.7,1.1380801]
[1659255236082,5.89538795,1691.2,1690.7,1.1380801]
[1659255236295,6.09538795,1691.2,1690.7,1.14027947]
[1659255236493,6.89804672,1691.1,1690.7,1.14027947]
[1659255236705,2.89804672,1691.0,1690.7,1.14027947]
[1659255237013,2.89804672,1691.0,1690.7,1.1380801]
[1659255237014,0.39824551,1690.9,1690.7,1.1380801]
[1659255237155,3.29629223,1690.9,1690.7,1.1380801]
[1659255237359,3.59202223,1690.9,1690.3,0.05]
[1659255237598,3.59202223,1690.9,1689.8,6.7327]
[1659255237599,14.56044672,1690.8,1690.1,0.05]
[1659255237816,3.29629223,1690.7,1690.5,0.00219956]
[1659255238098,2.89804672,1690.6,1690.5,0.00219956]
[1659255238300,2.89804672,1690.6,1690.5,0.00019956]
[1659255238861,0.39824551,1690.7,1690.5,1.179]
[1659255239189,0.39824551,1690.7,1690.5,0.59]
[1659255239707,0.36824551,1690.7,1690.5,0.59]
[1659255240392,8.8587,1690.9,1690.5,0.59]
[1659255240563,7.8587,1690.9,1690.5,0.59]
[1659255240765,0.05,1691.2,1690.8,0.2]
[1659255240958,7.9087,1691.4,1691.0,0.2]
[1659255241158,7.8587,1691.4,1691.0,0.2]
[1659255241357,5.9955,1691.6,1690.7,0.05]
[1659255241600,0.05,1691.6,1690.7,0.05]
[1659255242218,0.4434,1691.5,1690.7,0.05]
[1659255242451,0.05,1691.5,1691.2,0.2]
[1659255242599,14.35209,1691.8,1691.4,0.2]
[1659255242600,13.6632,1691.8,1691.4,0.2]
[1659255242798,13.6132,1691.8,1691.5,0.2]
[1659255243042,3.59234,1692.1,1691.7,0.2]
[1659255243043,0.05,1692.1,1691.7,0.2]
[1659255243246,4.6486,1692.3,1691.9,0.2]
[1659255243247,0.36824551,1692.2,1691.9,0.2]
[1659255243426,0.36824551,1692.2,1691.6,0.03]
[1659255243427,0.36824551,1692.2,1691.6,0.05]
[1659255243745,13.7835,1692.4,1691.6,0.2]
[1659255244044,0.36824551,1692.3,1691.7,0.03593676]
[1659255244439,0.36824551,1692.3,1691.5,0.05]
[1659255244600,3.70949223,1692.3,1691.4,0.05]
[1659255244799,3.70949223,1692.3,1691.6,0.03]
[1659255244800,3.75949223,1692.3,1691.6,0.03]
[1659255245149,0.81144551,1692.3,1691.6,0.03]
[1659255245298,0.81144551,1692.3,1691.8,0.2]
[1659255245299,0.36824551,1692.3,1691.8,0.2]
[1659255245501,0.05,1692.5,1692.2,0.2]
[1659255245723,1.0,1692.8,1692.2,0.2]
[1659255245724,0.4931,1692.8,1692.2,0.2]
[1659255245933,7.919,1692.9,1692.3,2.89804672]
[1659255246205,8.8714,1693.0,1692.5,0.2]
[1659255246350,0.05,1693.2,1693.0,0.2]
[1659255246557,0.05,1693.5,1692.7,3.5]
[1659255246717,0.05,1693.5,1692.9,2.89804672]
[1659255246918,0.05,1693.7,1693.1,2.89804672]
[1659255247144,0.05,1693.9,1693.2,9.89804672]
[1659255247329,0.05,1694.0,1693.3,3.09804672]
[1659255247541,0.05,1694.0,1693.2,7.4429]
[1659255247542,0.05,1694.1,1693.6,0.2]
[1659255247743,2.71852234,1694.2,1693.7,2.89804672]
[1659255248025,3.99853068,1694.4,1693.7,2.89804672]
[1659255248254,3.99853068,1694.4,1693.3,0.6429]
[1659255248255,3.94853068,1694.4,1693.6,0.25]
[1659255248455,0.4427,1694.3,1693.5,0.05]
[1659255248679,0.4427,1694.3,1693.4,0.05]
[1659255248680,1.107,1694.0,1693.4,0.05]
[1659255248962,0.4428,1693.9,1693.2,0.05]
[1659255249120,0.36824551,1693.9,1693.3,2.92804672]
[1659255249320,0.36824551,1693.9,1693.4,2.89804672]
[1659255249650,0.36824551,1693.9,1693.2,0.05]
[1659255250003,0.36824551,1693.9,1693.1,0.05]
[1659255250004,1.107,1693.7,1693.1,0.05]
[1659255250179,1.01104551,1693.6,1692.4,3.9432]
[1659255250326,0.05,1693.4,1692.4,0.6432]
[1659255250530,0.05,1693.4,1693.0,0.2]
[1659255250829,3.0,1693.7,1693.2,0.2]
[1659255250830,0.05,1693.7,1693.2,0.2]
[1659255251046,0.36824551,1693.7,1693.2,3.09804672]
[1659255251261,0.05,1693.9,1693.5,0.2]
[1659255251575,8.6711,1694.1,1693.5,0.2]
[1659255251874,8.59664551,1694.1,1693.3,2.89804672]
[1659255252036,8.59664551,1694.1,1693.6,0.2]
[1659255252037,8.64664551,1694.1,1693.6,0.2]
[1659255252240,0.36824551,1694.1,1693.7,2.89804672]
[1659255252838,0.36824551,1694.1,1693.7,2.92804672]
[1659255253042,0.05,1694.4,1694.0,0.2]
[1659255253244,0.05,1694.7,1694.1,2.89804672]
[1659255253460,3.18761499,1694.9,1694.1,2.89804672]
[1659255253836,6.08566171,1694.9,1694.1,2.92804672]
[1659255254048,6.08566171,1694.9,1694.2,2.89804672]
[1659255254049,3.18761499,1694.9,1694.2,2.89804672]
[1659255254189,3.13761499,1694.9,1694.1,2.97804672]
[1659255254546,3.07403108,1694.8,1694.0,0.05]
[1659255254705,3.07403108,1694.8,1694.0,2.89804672]
[1659255254913,0.4426,1694.7,1694.0,2.89804672]
[1659255255220,0.4426,1694.7,1694.0,2.92804672]
[1659255255417,0.4925,1694.8,1694.1,2.89804672]
[1659255255621,0.7925,1694.9,1694.1,2.89804672]
[1659255255795,1.0925,1694.9,1694.1,2.89804672]
[1659255255995,1.0925,1694.9,1694.0,0.08]
[1659255255996,0.2,1694.8,1694.0,2.97804672]
[1659255256191,1.26848436,1694.9,1694.3,0.2]
[1659255256392,3.6,1694.9,1694.3,3.12804672]
[1659255256637,3.96824551,1694.9,1694.3,3.12804672]
[1659255256823,3.96824551,1694.9,1694.3,2.92804672]
[1659255258463,3.34054672,1694.8,1694.1,0.05]
[1659255258663,0.2,1694.4,1694.0,0.05]
[1659255258832,0.2,1694.4,1693.7,0.05]
[1659255258833,3.09804672,1694.4,1693.7,0.05]
[1659255259033,3.09804672,1694.4,1693.6,0.05]
[1659255259034,4.74374672,1694.3,1693.6,0.05]
[1659255259262,4.74374672,1694.3,1693.2,3.9429]
[1659255259263,6.09804672,1694.2,1693.5,0.05]
[1659255259424,6.46629223,1694.2,1693.4,0.05]
[1659255259622,6.64227659,1694.2,1693.3,0.05]
[1659255259868,6.49227659,1694.2,1693.3,0.05]
[1659255260022,6.49227659,1694.2,1693.4,0.2]
[1659255260223,0.4427,1694.1,1693.4,2.89804672]
[1659255260468,1.103,1693.9,1693.3,2.94804672]
[1659255260640,1.307,1693.5,1693.1,0.05]
[1659255260953,6.31115698,1693.4,1692.8,0.05]
[1659255261117,6.31115698,1693.4,1692.6,0.05]
[1659255261118,3.19804672,1693.3,1692.6,0.05]
[1659255261317,6.34094672,1693.2,1692.5,0.05]
[1659255261518,0.3,1693.3,1692.5,0.03]
[1659255261519,0.05,1693.3,1692.5,0.03]
[1659255261750,0.2953395,1693.6,1692.5,0.03]
[1659255261751,0.05,1693.4,1692.5,0.03]
[1659255261918,2.89804672,1693.3,1692.5,0.08]
[1659255262139,2.89804672,1693.3,1692.5,0.03]
[1659255262317,0.2,1693.1,1692.5,0.03]
[1659255262767,0.05,1693.2,1692.5,0.03]
[1659255262916,2.89804672,1693.2,1692.5,0.03]
[1659255263319,6.25860923,1693.2,1692.5,0.03]
[1659255263919,6.62685474,1693.2,1692.5,0.03]
[1659255264856,0.05,1693.3,1693.0,0.2]
[1659255265086,0.29529,1693.6,1692.7,0.05]
[1659255265087,2.98597734,1693.6,1692.7,0.05]
[1659255265275,2.79924939,1693.2,1692.7,0.05]
[1659255265420,4.10624939,1693.2,1692.5,0.05]
[1659255265621,0.443,1693.1,1692.4,0.05]
[1659255265821,0.36824551,1693.0,1692.3,0.05]
[1659255266022,0.36824551,1693.0,1692.2,0.05]
[1659255266221,0.36824551,1693.0,1692.0,6.8]
[1659255266222,0.41824551,1693.0,1692.1,0.05]
[1659255266435,2.89804672,1692.9,1692.1,2.94804672]
[1659255266651,2.94804672,1692.9,1692.2,0.03]
[1659255266856,0.36824551,1692.8,1692.2,0.03]
[1659255267255,0.36824551,1692.8,1692.2,3.53]
[1659255267478,0.36824551,1692.8,1692.2,0.03]
[1659255267963,0.56824551,1692.8,1692.2,0.03]
[1659255268180,2.89804672,1692.7,1692.2,0.03]
[1659255269097,2.89804672,1692.8,1692.2,0.03]
[1659255271895,0.36824551,1692.7,1692.2,0.03]
[1659255272110,2.89804672,1692.6,1692.2,0.03]
[1659255273607,0.36824551,1692.7,1692.2,0.03]
[1659255273759,11.1367,1692.9,1692.4,0.2]
[1659255273959,0.29538,1693.1,1692.5,0.03]
[1659255273960,0.443,1693.0,1692.5,0.03]
[1659255274172,3.34104672,1693.0,1692.5,0.03]
[1659255274611,2.89804672,1693.0,1692.5,0.03]
[1659255275587,2.89804672,1693.0,1692.3,0.05]
[1659255275899,2.89804672,1693.0,1692.2,0.05]
[1659255276099,2.94804672,1693.0,1692.3,0.03]
[1659255276306,2.89804672,1693.0,1692.3,0.03]
[1659255276927,2.89804672,1693.0,1692.3,3.53]
[1659255277107,0.78838,1693.1,1692.5,3.5]
[1659255277108,0.05,1693.1,1692.5,3.5]
[1659255277306,0.05,1693.2,1693.0,3.5]
[1659255277507,0.05,1693.5,1692.8,3.7]
[1659255277716,0.05,1693.6,1692.8,3.7]
[1659255277937,0.05,1693.6,1692.9,2.89804672]
[1659255278110,0.05,1693.7,1693.1,0.2]
[1659255278308,0.73806,1693.8,1693.1,0.2]
[1659255278533,1.03806,1693.8,1693.1,0.2]
[1659255278733,1.03806,1693.8,1693.0,0.05]
[1659255278915,1.03806,1693.8,1692.9,3.17804672]
[1659255279118,1.08806,1693.8,1692.9,3.17804672]
[1659255279404,1.08806,1693.8,1692.9,2.97804672]
[1659255279405,3.5,1693.7,1692.9,2.97804672]
[1659255279703,1.08806,1693.8,1692.9,2.92804672]
[1659255279704,0.36824551,1693.6,1692.9,2.92804672]
[1659255280357,0.36824551,1693.6,1693.2,0.2]
[1659255280556,0.36824551,1693.6,1693.2,0.23]
[1659255281141,0.3644529,1693.6,1693.2,0.23]
[1659255281751,2.8095,1693.9,1693.2,0.23]
[1659255281957,5.65754672,1693.9,1693.2,3.12804672]
[1659255282125,2.7595,1693.9,1693.3,2.89804672]
[1659255282341,2.7595,1693.9,1693.3,6.39804672]
[1659255282546,2.81303116,1693.9,1693.3,2.89804672]
[1659255282743,2.81303116,1693.9,1693.3,6.39804672]
[1659255282968,2.81303116,1693.9,1693.5,0.2]
[1659255283169,3.4231,1694.1,1693.5,6.39804672]
[1659255283170,2.9804,1694.1,1693.5,6.39804672]
[1659255283381,0.05,1694.2,1693.5,2.89804672]
[1659255283672,7.5137,1694.3,1693.5,2.89804672]
[1659255283673,7.5637,1694.3,1693.5,2.89804672]
[1659255283906,2.89804672,1694.1,1693.4,0.05]
[1659255284062,2.89804672,1694.1,1692.8,0.4431]
[1659255284063,4.607,1694.0,1693.3,0.05]
[1659255284229,4.607,1694.0,1693.2,0.05]
[1659255284230,3.19804672,1693.9,1693.2,0.05]
[1659255284430,3.65176846,1693.8,1693.1,0.05]
[1659255284660,3.65176846,1693.8,1693.0,0.25]
[1659255284865,3.65176846,1693.8,1692.9,0.05]
[1659255284866,1.103,1693.6,1692.9,0.05]
[1659255285060,1.103,1693.6,1692.6,2.793]
[1659255285061,2.89804672,1693.5,1692.8,0.05]
[1659255285279,0.05,1693.6,1692.9,3.13183933]
[1659255285431,0.05,1693.7,1693.0,9.89804672]
[1659255285633,0.31092174,1693.7,1693.0,9.89804672]
[1659255285838,0.31092174,1693.7,1693.0,2.89804672]
[1659255286139,2.89804672,1693.6,1692.9,0.08379261]
[1659255286334,2.89804672,1693.6,1692.9,0.03379261]
[1659255286335,0.31092174,1693.5,1692.9,0.03379261]
[1659255286765,0.3644529,1693.5,1692.9,0.03379261]
[1659255287475,0.3644529,1693.5,1692.9,0.0437486]
[1659255288601,0.05,1693.7,1693.1,0.2]
[1659255288766,8.9039,1693.9,1693.2,3.53379261]
[1659255288967,11.75194672,1693.9,1693.2,3.54374683]
[1659255289172,11.80547788,1693.9,1693.2,3.54374683]
[1659255289792,11.80547788,1693.9,1693.2,0.04374683]
[1659255291364,12.24827788,1693.9,1693.2,0.04374683]
[1659255292059,0.31092174,1693.8,1693.2,0.04374683]
[1659255293165,0.31092174,1693.8,1693.3,0.2]
[1659255293552,0.31092174,1693.8,1693.2,0.04374683]
[1659255294501,0.2,1693.7,1693.0,0.05]
[1659255294658,0.31092174,1693.6,1693.0,0.03379261]
[1659255294861,0.05,1693.7,1693.3,0.2]
[1659255295061,9.3467,1693.9,1693.3,0.2]
[1659255295294,12.19474672,1693.9,1693.3,0.2]
[1659255295492,0.31092174,1693.8,1693.2,3.5]
[1659255295693,0.05353116,1693.7,1693.1,2.89804672]
[1659255297482,0.05353116,1693.7,1693.1,2.93183933]
[1659255298328,0.05353116,1693.7,1693.1,0.03379261]
[1659255299195,0.31092174,1693.6,1693.1,0.03379261]
[1659255301223,0.31092174,1693.6,1693.1,2.93183933]
[1659255301602,0.05353116,1693.7,1693.1,2.93183933]
[1659255301840,0.05353116,1693.7,1693.2,2.89804672]
[1659255302139,8.9039,1693.9,1693.5,0.2]
[1659255302140,0.05,1693.9,1693.5,0.2]
[1659255302365,7.723,1694.0,1693.5,3.09804672]
[1659255302847,0.05,1694.2,1693.6,0.03379261]
[1659255303002,13.6728,1694.3,1693.6,0.03379261]
[1659255303353,10.5609,1694.3,1693.6,2.93183933]
[1659255303519,10.5609,1694.3,1693.7,2.89804672]
[1659255303708,10.5609,1694.3,1693.9,0.2]
[1659255305402,0.05,1694.5,1694.0,6.43183933]
[1659255305602,0.4426,1694.7,1694.2,0.19767084]
[1659255305603,7.9778,1694.7,1694.2,0.19767084]
[1659255305830,7.9278,1694.7,1694.2,0.19767084]
[1659255306222,3.3026,1694.9,1694.3,2.89804672]
[1659255306223,2.8601,1694.9,1694.3,2.89804672]
[1659255306403,3.1745529,1694.9,1694.2,0.23146345]
[1659255306742,0.00232916,1694.6,1694.1,0.05]
[1659255306948,0.00232916,1694.6,1693.9,0.05]
[1659255306949,0.4426,1694.5,1693.9,0.05]
[1659255307247,0.4426,1694.5,1693.7,10.9762]
[1659255307248,0.3644529,1694.4,1693.7,11.0262]
[1659255307539,0.3644529,1694.4,1693.8,2.89804672]
[1659255308745,0.3644529,1694.4,1693.8,0.03379261]
[1659255309304,0.180517,1694.1,1693.8,0.03379261]
[1659255309501,0.180517,1694.1,1693.8,3.12951017]
[1659255309744,0.180517,1694.1,1694.0,0.19767084]
[1659255309953,0.180517,1694.1,1694.0,3.12951017]
[1659255310134,0.180517,1694.1,1694.0,2.93183933]
[1659255310378,0.180517,1694.1,1694.0,0.62379261]
[1659255310548,0.180517,1694.1,1694.0,3.52183933]
[1659255310980,0.180517,1694.1,1694.0,3.48804672]
[1659255311253,0.180517,1694.1,1693.8,0.4428]
[1659255311456,0.180517,1694.1,1693.9,2.89804672]
[1659255316727,0.180517,1694.1,1693.8,2.93183933]
[1659255318941,0.180517,1694.1,1693.8,2.89804672]
[1659255319331,0.49143874,1694.1,1693.8,2.89804672]
[1659255319524,0.49143874,1694.1,1693.7,10.63674672]
[1659255319766,0.180517,1694.1,1694.0,0.19767084]
[1659255319959,0.180517,1694.1,1694.0,3.09571756]
[1659255320442,0.180517,1694.1,1694.0,2.89804672]
[1659255321341,0.180517,1694.1,1693.7,15.3387]
[1659255321342,0.00232916,1694.0,1693.7,0.6]
[1659255321564,0.180517,1694.1,1693.7,0.6]
[1659255321565,0.180517,1694.1,1693.7,3.6]
[1659255321876,0.180517,1694.1,1693.6,8.12289261]
[1659255322042,0.180517,1694.1,1693.6,11.02093933]
[1659255323302,0.180517,1694.1,1693.6,2.93183933]
[1659255323449,0.180517,1694.1,1693.4,7.989]
[1659255323450,0.00232916,1694.0,1693.4,7.989]
[1659255323653,6.40037588,1694.0,1693.4,7.939]
[1659255323889,3.34307588,1694.0,1693.2,3.1987]
[1659255324193,0.180517,1693.6,1693.2,6.04674672]
[1659255324346,0.180517,1693.6,1693.2,3.1487]
[1659255324552,0.180517,1693.6,1693.1,0.03379261]
[1659255324785,0.180517,1693.6,1692.9,0.05]
[1659255324786,1.55222916,1693.5,1692.9,0.05]
[1659255324965,1.55222916,1693.5,1692.7,0.05]
[1659255324966,0.00232916,1693.3,1692.7,0.05]
[1659255325182,3.34327588,1693.3,1692.5,0.057]
[1659255325404,3.34327588,1693.3,1692.5,0.007]
[1659255326517,3.34094672,1693.3,1692.6,0.03379261]
[1659255326707,2.90037588,1693.1,1692.5,0.057]
[1659255326890,1.10532916,1692.9,1692.5,0.007]
[1659255327092,6.12364672,1692.8,1692.5,0.007]
[1659255327275,2.89804672,1692.7,1692.5,0.007]
[1659255327475,0.4431,1692.6,1692.5,0.007]
[1659255327719,3.34114672,1692.6,1692.5,0.007]
[1659255328075,3.34052463,1692.6,1692.5,0.007]
[1659255328274,2.90037588,1692.6,1692.5,0.007]
[1659255329098,2.89804672,1692.6,1692.5,0.007]
[1659255329293,3.19804672,1692.6,1692.5,0.007]
[1659255329535,3.82166372,1692.6,1692.5,0.007]
[1659255330499,6.5584032,1692.6,1692.5,0.007]
[1659255331331,6.5584032,1692.6,1692.1,0.05]
[1659255331332,0.00232916,1692.4,1692.1,0.05]
[1659255331560,0.00232916,1692.4,1691.8,0.05]
[1659255331561,3.34124672,1692.3,1691.8,0.05]
[1659255331698,0.7432,1692.3,1691.6,0.05]
[1659255331902,0.05,1692.4,1691.8,0.03379261]
[1659255332222,3.7431,1692.5,1691.7,2.37951017]
[1659255332223,3.35,1692.5,1691.7,2.37951017]
[1659255332849,3.35,1692.5,1691.8,0.00438337]
[1659255333013,3.3,1692.5,1691.8,0.00438337]
[1659255333795,3.463017,1692.6,1691.8,0.00438337]
[1659255334008,3.463017,1692.6,1691.8,2.90243009]
[1659255334009,0.4431,1692.5,1691.8,2.90243009]
[1659255334215,6.80416372,1692.6,1691.8,6.40243009]
[1659255335035,0.39824551,1692.5,1691.8,6.40243009]
[1659255335641,0.180517,1692.2,1691.8,0.00438337]
[1659255336881,0.180517,1692.2,1691.8,3.50438337]
[1659255338134,0.180517,1692.2,1691.5,3.1993]
[1659255338135,0.39824551,1692.1,1691.5,3.1993]
[1659255338328,0.39824551,1692.1,1691.3,8.1438]
[1659255338535,0.44824551,1692.1,1691.7,3.69767084]
[1659255338733,0.39824551,1692.1,1691.7,3.69767084]
[1659255338965,0.39824551,1692.1,1691.7,3.5]
[1659255339475,0.39824551,1692.1,1691.7,6.39804672]
[1659255339843,0.39824551,1692.1,1691.7,2.89804672]
[1659255340487,0.39824551,1692.1,1691.7,6.39804672]
[1659255340906,0.180517,1691.9,1691.7,2.89804672]
[1659255341579,0.180517,1691.9,1691.7,6.39804672]
[1659255342461,0.180517,1691.9,1691.7,2.89804672]
[1659255342864,0.180517,1691.9,1691.6,2.89804672]
[1659255343906,0.180517,1691.9,1691.6,6.39804672]
[1659255344202,0.180517,1691.9,1691.6,2.89804672]
[1659255344385,0.180517,1691.9,1691.5,0.00476555]
[1659255345380,0.180517,1691.9,1691.5,6.60048311]
[1659255346041,0.180517,1691.9,1691.5,6.40281227]
[1659255346414,0.180517,1691.9,1691.5,3.5]
[1659255346614,0.180517,1691.9,1691.3,11.0938]
[1659255346851,0.180517,1691.9,1691.4,2.89804672]
[1659255347715,0.180517,1691.9,1691.3,8.0938]
[1659255347936,0.39824551,1691.8,1691.3,8.0938]
[1659255348286,0.00232916,1691.6,1691.1,0.05]
[1659255348434,0.00232916,1691.3,1690.9,0.05]
[1659255348635,0.180517,1691.2,1690.6,11.3189]
[1659255348864,0.180517,1691.2,1690.6,11.29042189]
[1659255349250,0.34471435,1691.1,1690.6,11.29042189]
[1659255350433,0.23404816,1691.2,1690.6,11.29042189]
[1659255350650,0.23404816,1691.2,1690.7,2.89804672]
[1659255350874,0.23404816,1691.2,1690.8,0.02151933]
[1659255353767,3.13209488,1691.2,1690.8,0.02151933]
[1659255353979,0.34471435,1691.1,1690.5,0.05]
[1659255354155,0.34471435,1691.1,1690.7,0.02484521]
[1659255354578,0.34205043,1691.1,1690.7,0.02484521]
[1659255354750,0.180517,1690.9,1690.7,0.02484521]
[1659255355154,0.180517,1690.9,1690.6,0.00266392]
[1659255355463,0.180517,1690.9,1690.6,3.50266392]
[1659255356086,0.180517,1690.9,1690.6,0.00266392]
[1659255356317,0.180517,1690.9,1690.4,0.02484962]
[1659255356507,0.180517,1690.9,1690.0,0.4438]
[1659255356508,0.00232916,1690.8,1690.2,0.05]
[1659255356668,0.00232916,1690.8,1690.2,2.89804672]